bitfinex/quotes_ETHUSD_20220308
["timestamp","ask_amount","ask_price","bid_price","bid_amount"]
[1646739444543,6.03976561,2583.9,2583.5,0.0035364]
[1646739444544,2.90553,2583.7,2583.5,0.0035364]
[1646739444792,0.96849,2583.6,2583.5,0.0035364]
[1646739444995,0.96849,2583.6,2583.4,0.08940501]
[1646739444996,5.0,2583.5,2583.4,0.08940501]
[1646739445192,5.0,2583.5,2583.4,0.09647781]
[1646739445193,6.18727348,2583.5,2583.4,0.09647781]
[1646739445397,5.8861,2583.4,2582.9,0.01307148]
[1646739445597,9.0,2583.4,2583.3,0.52321602]
[1646739446095,9.0,2583.4,2583.3,0.52828405]
[1646739446294,5.5,2583.4,2583.3,0.52828405]
[1646739446898,5.5,2583.4,2583.3,0.52321602]
[1646739447197,9.0,2583.4,2583.3,0.52321602]
[1646739447399,9.96851,2583.4,2583.3,0.02321602]
[1646739448200,8.40591,2583.3,2582.9,0.01307148]
[1646739448439,6.4059,2583.2,2583.0,0.87076208]
[1646739448844,0.95738357,2583.1,2583.0,0.87076208]
[1646739449048,0.01863792,2583.0,2582.9,7.148e-05]
[1646739449247,5.5,2582.9,2582.3,0.0305008]
[1646739449445,3.8861,2582.8,2582.3,0.0283225]
[1646739449644,2.32373,2582.8,2582.5,0.01530638]
[1646739449843,2.32373,2582.8,2582.3,0.0283225]
[1646739449844,9.0,2582.7,2582.3,0.0283225]
[1646739450046,5.5,2582.5,2582.1,0.04093087]
[1646739450250,5.5,2582.3,2581.9,0.1165384]
[1646739450447,0.01220536,2582.0,2581.9,6.9e-05]
[1646739450748,0.47820536,2582.0,2581.9,6.9e-05]
[1646739450947,3.97820536,2582.0,2581.9,6.9e-05]
[1646739451146,5.5,2581.9,2581.8,0.03205512]
[1646739451348,10.40428119,2581.9,2581.8,0.03205512]
[1646739451552,11.40428119,2581.9,2581.8,0.03205512]
[1646739451747,5.96906,2581.8,2581.7,0.069068]
[1646739452386,0.018832,2581.7,2581.2,0.0200518]
[1646739452584,3.984832,2581.7,2581.2,0.0200518]
[1646739452785,0.484832,2581.7,2581.2,0.0200518]
[1646739453286,3.984832,2581.7,2581.2,0.0200518]
[1646739453889,0.484832,2581.7,2581.2,0.0200518]
[1646739454292,0.466,2581.7,2581.2,0.0200518]
[1646739454489,0.466,2581.7,2581.5,0.00504912]
[1646739455291,5.13052771,2581.7,2581.5,0.00504912]
[1646739455490,16.93052771,2581.7,2581.2,0.0200518]
[1646739455689,16.93052771,2581.7,2581.6,1.898e-05]
[1646739455934,17.3,2581.6,2581.4,9.8e-05]
[1646739456137,17.3,2581.6,2581.2,0.0200518]
[1646739456138,0.0059,2581.4,2581.2,0.0200518]
[1646739456337,12.56541976,2581.3,2581.2,9.812e-05]
[1646739456541,12.56541976,2581.3,2580.8,4.292e-05]
[1646739456542,11.46839088,2581.1,2580.8,4.292e-05]
[1646739456742,11.05507592,2580.7,2580.6,0.0123298]
[1646739456940,16.55507592,2580.6,2580.0,0.06704748]
[1646739457237,15.40717592,2580.5,2580.0,0.06704748]
[1646739457438,0.96985,2580.2,2579.7,0.0021783]
[1646739457737,0.96985,2580.2,2580.0,0.02663516]
[1646739457738,1.44883743,2580.2,2580.0,0.02663516]
[1646739457938,1.44883743,2580.2,2580.0,0.01924432]
[1646739457939,9.0,2580.1,2580.0,0.01924432]
[1646739458140,2.91008,2579.9,2579.8,8.2e-05]
[1646739458339,2.91008,2579.9,2579.6,0.0906843]
[1646739458340,11.8,2579.7,2579.6,0.0053468]
[1646739458541,11.7869956,2579.5,2578.5,0.0385983]
[1646739458842,0.0124466,2579.1,2578.8,0.06021226]
[1646739459042,1.15699173,2579.3,2578.8,1.11101712]
[1646739459243,1.15699173,2579.0,2578.8,1.11101712]
[1646739459698,1.15699173,2579.0,2578.8,0.06021226]
[1646739460491,1.15699173,2579.0,2578.8,0.06398428]
[1646739461297,4.8809122,2579.7,2578.8,0.06021226]
[1646739461298,2.91088,2579.7,2578.8,0.06021226]
[1646739461702,2.91088,2579.7,2578.8,0.06398428]
[1646739462298,2.91088,2579.7,2579.6,1.04028791]
[1646739462900,2.91088,2579.7,2578.8,0.06021226]
[1646739462901,2.91088,2579.7,2579.1,0.0050548]
[1646739463098,2.91088,2579.7,2579.1,0.0302604]
[1646739463738,2.91088,2579.7,2579.1,0.0252056]
[1646739463939,3.88212703,2579.7,2579.1,1.02524471]
[1646739464139,3.5,2579.6,2579.3,0.00505458]
[1646739464343,2.91004,2579.5,2579.3,0.00505458]
[1646739464543,3.5,2579.4,2579.3,0.00505458]
[1646739464742,3.5,2579.4,2579.1,0.0213872]
[1646739464743,5.5,2579.3,2579.1,0.0213872]
[1646739464940,3.966,2579.2,2579.1,0.0213872]
[1646739465140,5.01273765,2579.2,2578.8,0.03500666]
[1646739465340,1.43623,2579.2,2578.9,0.01961474]
[1646739465739,1.94008,2579.1,2578.9,0.01961474]
[1646739466341,1.94008,2579.1,2578.9,0.97449909]
[1646739466543,1.94008,2579.1,2578.8,0.03500666]
[1646739467614,3.16171716,2579.1,2578.8,0.03500666]
[1646739467913,6.66171716,2579.1,2578.8,0.03500666]
[1646739468415,3.16171716,2579.1,2578.8,0.03500666]
[1646739468614,6.66171716,2579.1,2578.8,0.03500666]
[1646739468814,6.66171716,2579.1,2578.8,0.04006408]
[1646739469214,4.13185716,2579.1,2578.8,0.04006408]
[1646739469817,3.16171716,2579.1,2578.8,0.03500666]
[1646739470215,6.66171716,2579.1,2578.8,0.04006408]
[1646739471034,6.66171716,2579.1,2578.8,0.03500666]
[1646739471239,6.66171716,2579.1,2578.8,0.04006408]
[1646739472237,6.66171716,2579.1,2578.5,0.02360496]
[1646739472239,2.5,2579.0,2578.5,0.02360496]
[1646739472440,4.44006,2579.0,2578.8,0.00505742]
[1646739472639,1.94006,2579.0,2578.8,0.00505742]
[1646739473447,1.94006,2579.0,2578.5,0.02360496]
[1646739473745,1.94006,2579.0,2578.8,0.00490577]
[1646739474684,1.94006,2579.0,2578.5,0.02360496]
[1646739474884,1.94006,2579.0,2578.8,0.00490577]
[1646739475889,1.94006,2579.0,2578.5,0.02360496]
[1646739476091,1.94006,2579.0,2578.8,0.00490577]
[1646739476491,2.91015,2579.0,2578.8,0.00490577]
[1646739477093,2.91015,2579.0,2578.5,0.02360496]
[1646739477291,2.91015,2579.0,2578.8,0.00471919]
[1646739477695,2.91015,2579.0,2578.8,0.88754784]
[1646739478293,2.91015,2579.0,2578.5,0.02360496]
[1646739478539,2.91015,2579.0,2578.8,0.00471919]
[1646739479342,3.92958221,2579.0,2578.8,0.00471919]
[1646739479640,5.44019,2578.9,2578.5,0.02360496]
[1646739479839,5.44019,2578.9,2578.8,0.00471919]
[1646739479840,1.94019,2578.9,2578.8,0.00471919]
[1646739480545,5.44019,2578.9,2578.8,0.00471919]
[1646739480742,0.9701,2578.8,2578.5,0.02360496]
[1646739480941,1.94023,2578.8,2578.7,0.00472792]
[1646739481942,1.9402,2578.7,2578.5,0.02360496]
[1646739482195,0.97009,2578.9,2578.6,0.00472806]
[1646739482394,5.7464,2579.6,2578.6,0.00472806]
[1646739482693,3.8861,2579.5,2578.6,0.00472806]
[1646739482998,3.8861,2579.5,2578.5,0.02360496]
[1646739483192,1.35624,2579.0,2578.5,0.02360496]
[1646739483393,0.97013,2578.9,2578.6,0.01891319]
[1646739483898,0.97014,2579.0,2578.6,0.01891319]
[1646739484100,1.15113171,2578.9,2578.6,0.01891319]
[1646739484296,1.15113171,2578.9,2578.5,0.02360496]
[1646739484498,2.0,2578.9,2577.8,0.3861]
[1646739484698,1.20421764,2579.0,2577.8,0.4041438]
[1646739484998,0.23407764,2579.0,2577.9,2.76592236]
[1646739485197,0.23407764,2579.0,2577.9,3.06592236]
[1646739485600,1.00972761,2578.8,2578.3,0.92434031]
[1646739485797,1.94027,2578.7,2578.3,0.92434031]
[1646739486041,1.94027,2578.7,2577.8,0.32165848]
[1646739486438,0.9701,2578.7,2577.8,0.32165848]
[1646739486838,4.4701,2578.7,2577.8,0.32165848]
[1646739487240,0.99815936,2578.3,2577.8,8.93191664]
[1646739487443,0.9701,2578.7,2577.8,8.93191664]
[1646739487642,1.20417764,2578.7,2577.8,7.32854988]
[1646739487848,0.23407764,2578.5,2577.8,7.32854988]
[1646739488044,1.20425764,2578.5,2577.8,0.03854988]
[1646739488245,0.00451302,2578.2,2577.8,0.03854988]
[1646739488642,1.08201007,2578.1,2577.8,0.03854988]
[1646739489044,3.5,2578.0,2577.8,0.03854988]
[1646739489242,0.23407764,2577.9,2577.8,0.03854988]
[1646739489688,5.5,2577.8,2577.7,0.00472323]
[1646739489893,5.8861,2577.8,2577.7,0.04804019]
[1646739490095,6.9759,2577.8,2577.7,0.04331696]
[1646739490292,6.9759,2577.8,2577.7,0.03605179]
[1646739491098,1.0898,2577.8,2577.7,0.03605179]
[1646739491302,0.97058,2577.8,2577.7,0.03605179]
[1646739492099,1.35668,2577.8,2577.7,0.03605179]
[1646739492300,0.97058,2577.8,2577.7,0.03605179]
[1646739493000,0.97058,2577.8,2577.7,0.01451051]
[1646739493306,1.35668,2577.8,2577.7,0.01451051]
[1646739493942,1.35668,2577.8,2577.2,0.0174624]
[1646739493943,1.35685,2577.5,2577.2,0.0174624]
[1646739494142,1.35685,2577.5,2576.1,0.0185326]
[1646739494143,5.5,2577.2,2576.1,0.0185326]
[1646739494346,3.5,2577.1,2576.8,0.0236946]
[1646739494543,0.23407764,2576.9,2576.8,0.0236946]
[1646739494739,1.08617764,2576.9,2576.8,0.0236946]
[1646739495341,3.24072463,2576.9,2576.8,0.0236946]
[1646739495542,6.74072463,2576.9,2576.8,0.0236946]
[1646739495742,3.18904836,2576.9,2576.8,0.0236946]
[1646739495943,6.68904836,2576.9,2576.8,0.0236946]
[1646739496244,3.18904836,2576.9,2576.8,0.0236946]
[1646739497291,6.68904836,2576.9,2576.8,0.0236946]
[1646739497492,18.48904836,2576.9,2576.8,0.0236946]
[1646739497993,5.5,2576.6,2576.3,0.00213995]
[1646739498197,5.8861,2576.4,2576.2,0.04035142]
[1646739498398,0.97121,2576.5,2575.5,0.09543818]
[1646739498399,0.00029144,2575.9,2575.7,0.07403495]
[1646739498600,0.00029144,2575.9,2575.7,0.10815052]
[1646739498601,0.18240137,2575.8,2575.7,0.10815052]
[1646739498805,1.03450137,2575.8,2575.7,0.03931572]
[1646739499001,1.0,2576.1,2575.7,0.03931572]
[1646739499200,0.97149,2576.0,2575.7,0.03931572]
[1646739499402,0.18240137,2576.2,2575.7,0.03931572]
[1646739500110,0.18240137,2576.2,2575.7,0.04439023]
[1646739500302,1.94231,2576.1,2575.7,0.04439023]
[1646739500503,0.18240137,2575.8,2575.7,0.04439023]
[1646739501239,0.18240137,2575.8,2575.7,0.03931572]
[1646739501240,1.26152839,2575.8,2575.7,0.03931572]
[1646739501845,2.23290839,2575.8,2575.7,0.03931572]
[1646739502043,1.26152839,2575.8,2575.7,0.03267772]
[1646739502244,1.94243,2576.0,2575.8,0.42978586]
[1646739502447,1.94243,2576.0,2575.8,0.45729838]
[1646739502647,0.97121,2576.1,2575.8,0.45729838]
[1646739503854,0.97121,2576.1,2575.8,0.4622015]
[1646739504051,0.97121,2576.1,2575.8,1.6691674]
[1646739504247,0.97121,2576.1,2575.8,0.4622015]
[1646739504451,0.97121,2576.1,2575.8,0.4525061]
[1646739504723,0.97121,2576.1,2575.8,0.44760298]
[1646739504914,0.97121,2576.1,2575.8,0.45109328]
[1646739505314,0.97121,2576.1,2575.8,1.56438089]
[1646739505515,0.97121,2576.1,2575.8,0.45109328]
[1646739505915,0.97121,2576.1,2575.8,0.44760298]
[1646739506115,0.97121,2576.1,2575.8,0.45250825]
[1646739506721,1.02963091,2576.0,2575.8,0.45250825]
[1646739507117,1.02963091,2576.0,2575.8,0.44760298]
[1646739507316,1.02963091,2576.0,2575.8,0.4524466]
[1646739507516,0.97121,2576.1,2575.8,0.4524466]
[1646739507817,0.97121,2576.1,2575.8,0.4482126]
[1646739508217,0.97121,2576.1,2575.8,0.44336898]
[1646739508456,1.33086,2576.4,2575.8,0.44336898]
[1646739508659,1.33086,2576.4,2576.0,0.94006636]
[1646739508660,0.3598,2576.4,2576.0,0.94006636]
[1646739508858,0.3598,2576.4,2575.8,0.4482126]
[1646739509059,4.01915738,2576.6,2575.8,0.4482126]
[1646739509461,4.01915738,2576.6,2575.8,0.44336898]
[1646739509659,0.97099,2576.5,2575.8,0.44336898]
[1646739509861,0.97099,2576.5,2576.0,0.00484342]
[1646739510660,0.13819996,2576.8,2576.0,0.01781712]
[1646739510861,9.71011,2578.2,2576.0,0.01781712]
[1646739510862,3.26392913,2577.3,2576.7,1.181768]
[1646739511066,0.00472188,2577.1,2576.7,1.181768]
[1646739511561,0.00472188,2577.1,2576.7,1.867868]
[1646739511773,0.00472188,2577.1,2576.8,3.3861]
[1646739511960,1.1498,2578.2,2577.5,1.15429997]
[1646739511961,4.66457699,2578.1,2577.5,1.15429997]
[1646739512206,0.00472307,2577.1,2576.8,2.33158116]
[1646739512395,0.00472307,2577.1,2576.8,1.94762111]
[1646739512695,0.00472307,2577.1,2576.8,0.00474196]
[1646739513095,1.1294,2577.9,2576.5,0.01781712]
[1646739513096,0.97074,2577.3,2576.5,0.01781712]
[1646739513296,1.06515596,2577.2,2576.6,0.9570532]
[1646739513498,0.00472316,2577.1,2576.8,0.00474189]
[1646739514304,0.97062,2577.7,2576.6,0.9570532]
[1646739514699,0.00472316,2577.1,2576.8,0.00474864]
[1646739515499,4.0765,2577.9,2576.7,7.297414]
[1646739515700,4.0765,2577.9,2577.0,1.14066095]
[1646739515701,0.94370495,2577.7,2577.0,1.14066095]
[1646739515948,0.94370495,2577.7,2576.5,0.31781712]
[1646739515949,0.00472316,2577.1,2576.8,0.00688859]
[1646739516148,0.00472316,2577.1,2576.8,0.00474864]
[1646739516751,1.3861,2577.2,2576.5,0.01781712]
[1646739516752,0.3861,2577.2,2576.5,0.01781712]
[1646739516953,0.3861,2576.7,2576.5,0.01781712]
[1646739517151,0.91088435,2576.8,2576.5,0.01781712]
[1646739517152,2.26790435,2576.8,2576.5,0.01781712]
[1646739518054,0.3861,2576.7,2576.5,0.01781712]
[1646739518252,2.26790435,2576.8,2576.5,0.02256568]
[1646739518452,3.8861,2576.7,2576.5,0.02256568]
[1646739518655,3.8861,2576.6,2576.5,0.02256568]
[1646739519353,3.8861,2576.6,2576.5,0.01781712]
[1646739519790,4.8861,2576.6,2576.5,0.01781712]
[1646739523100,1.3861,2576.6,2576.5,0.01781712]
[1646739524448,0.3861,2576.7,2576.5,0.01781712]
[1646739524946,2.85281435,2576.8,2576.5,0.01781712]
[1646739525648,2.85281435,2576.8,2576.5,0.02256459]
[1646739525848,7.71012675,2576.8,2576.5,0.02256459]
[1646739526148,9.65256675,2576.8,2576.5,0.02256459]
[1646739526346,9.65256675,2576.8,2575.9,0.00213995]
[1646739526547,0.97133,2576.3,2576.1,0.06328491]
[1646739526751,4.61409107,2576.2,2576.1,0.06328491]
[1646739527203,5.00019107,2576.2,2576.1,0.06328491]
[1646739527590,5.00019107,2576.2,2575.9,0.634]
[1646739527591,0.97129,2576.1,2575.9,0.634]
[1646739528191,0.97129,2576.1,2575.9,0.2720428]
[1646739528393,0.97129,2576.1,2575.5,0.0103304]
[1646739528394,0.3861,2575.7,2575.5,0.0103304]
[1646739528599,9.466,2575.6,2575.4,0.0089582]
[1646739528797,6.966,2575.6,2575.4,0.0089582]
[1646739528998,7.966,2575.6,2575.4,0.0089582]
[1646739529197,5.5,2575.5,2575.4,0.0179164]
[1646739529396,8.07255747,2575.5,2575.4,1.64e-05]
[1646739529599,8.53855747,2575.5,2575.4,1.64e-05]
[1646739530697,12.03855747,2575.5,2575.4,1.64e-05]
[1646739531146,8.32388,2575.5,2575.4,1.64e-05]
[1646739532145,9.40970213,2575.5,2575.4,1.64e-05]
[1646739532652,7.93778,2575.5,2575.4,1.64e-05]
[1646739532855,2.43778,2575.5,2575.4,1.64e-05]
[1646739533052,1.0,2575.5,2575.4,1.64e-05]
[1646739533258,0.97132,2575.7,2575.4,1.64e-05]
[1646739534050,0.00489098,2575.6,2575.4,1.64e-05]
[1646739534702,0.00489098,2575.6,2575.3,0.00507508]
[1646739534902,1.43732,2575.7,2575.2,0.0164766]
[1646739535104,0.00489107,2575.6,2575.4,0.00507501]
[1646739535407,0.466,2575.5,2575.4,0.00507501]
[1646739535602,2.69750835,2575.5,2575.4,0.00507501]
[1646739536204,2.69750835,2575.5,2575.2,0.0164766]
[1646739536405,2.69750835,2575.5,2575.4,0.00507501]
[1646739536806,5.0,2575.4,2574.9,0.02333965]
[1646739537006,0.97159,2575.3,2574.9,0.02333965]
[1646739537408,0.89284466,2575.1,2574.9,0.02333965]
[1646739538943,0.97157,2575.2,2574.9,0.02333965]
[1646739540549,0.97157,2575.2,2574.9,0.9367402]
[1646739540951,1.0,2575.5,2575.0,0.1]
[1646739541152,7.40562,2576.1,2575.0,0.1]
[1646739541153,0.00492518,2575.6,2575.0,0.1]
[1646739541353,0.00492518,2575.6,2575.0,0.10209886]
[1646739541550,0.00492518,2575.6,2575.0,0.1]
[1646739541952,0.00492518,2575.6,2575.5,1.03111842]
[1646739542196,0.97117,2576.3,2575.5,1.03111842]
[1646739542796,0.97117,2576.3,2575.5,1.04675241]
[1646739542996,1.9423,2576.5,2575.5,1.04675241]
[1646739543300,0.97109,2576.4,2575.6,0.1]
[1646739543499,5.8261,2576.6,2575.6,3.6]
[1646739544100,3.1152,2576.6,2575.6,0.1]
[1646739544300,4.08621,2576.6,2575.6,0.1]
[1646739544500,0.99101686,2576.5,2576.0,0.1]
[1646739544701,0.97101,2576.6,2576.0,0.1]
[1646739545956,0.97101,2576.6,2576.0,0.11563399]
[1646739545957,0.00493001,2576.4,2576.0,0.11563399]
[1646739546143,0.00493001,2576.4,2576.0,3.61563399]
[1646739546548,0.00493001,2576.4,2576.2,0.1]
[1646739546748,1.55960378,2577.3,2576.2,0.1]
[1646739546749,0.55960378,2577.3,2576.2,3.9861]
[1646739546950,0.3607,2577.3,2576.4,0.1]
[1646739547147,0.3607,2577.3,2576.6,0.1]
[1646739547148,0.9169039,2577.1,2576.6,0.1]
[1646739547348,0.3607,2577.3,2576.6,0.1]
[1646739547750,0.3607,2577.3,2576.8,0.1]
[1646739548148,0.3607,2577.3,2576.8,3.9861]
[1646739548349,0.3607,2577.3,2576.8,0.4861]
[1646739548552,0.00493001,2577.1,2577.0,0.1]
[1646739548950,0.00493001,2577.1,2577.0,0.11563399]
[1646739549149,0.00493001,2577.1,2577.0,0.01563399]
[1646739549351,1.014768,2577.5,2577.0,0.01563399]
[1646739549554,0.00490877,2577.2,2577.0,0.01563399]
[1646739550195,0.00490877,2577.2,2575.9,0.00209886]
[1646739550196,1.1445782,2576.0,2575.9,0.00209886]
[1646739550395,0.97108,2576.3,2575.3,1.34392321]
[1646739550595,2.40816,2576.5,2575.4,1.58537733]
[1646739550797,2.40816,2576.5,2575.5,0.3861]
[1646739551101,0.466,2576.5,2575.5,0.3861]
[1646739551498,0.466,2576.5,2575.9,1.28299096]
[1646739551699,1.0096469,2576.6,2575.9,1.28299096]
[1646739551901,0.46938468,2576.9,2575.9,1.28299096]
[1646739552101,0.97095,2576.6,2575.9,1.28299096]
[1646739552506,0.97095,2576.6,2575.9,13.08299096]
[1646739552704,0.00338468,2576.9,2575.9,13.08299096]
[1646739553105,0.97422468,2576.9,2576.6,0.0008]
[1646739554351,0.97827657,2576.9,2576.6,0.0008]
[1646739555251,0.00338468,2576.9,2576.6,0.0008]
[1646739555453,0.00773717,2576.9,2576.6,0.0008]
[1646739556452,0.00338468,2576.9,2576.6,0.0008]
[1646739556651,0.00773717,2576.9,2576.6,0.0008]
[1646739557707,0.00338468,2576.9,2576.6,0.0008]
[1646739557906,0.00773717,2576.9,2576.6,0.0008]
[1646739558511,0.97079,2576.8,2576.6,0.0008]
[1646739559311,0.97079,2576.8,2576.1,0.30209886]
[1646739559512,0.97079,2576.8,2575.9,1.0]
[1646739559513,0.97079,2576.8,2575.9,1.3]
[1646739559712,0.97094,2576.2,2575.7,0.90577917]
[1646739559913,0.97101,2576.1,2575.7,0.90577917]
[1646739560713,0.97101,2576.1,2575.3,11.80692455]
[1646739560954,0.97101,2576.1,2575.4,13.38537643]
[1646739561142,0.97099,2576.0,2575.5,1.58537643]
[1646739561341,0.97099,2576.0,2575.5,1.88537643]
[1646739561552,0.97099,2576.0,2575.6,1.58537643]
[1646739561553,0.00412012,2575.8,2575.6,1.58537643]
[1646739561744,0.97099,2576.0,2575.9,0.64050712]
[1646739562950,1.94197,2576.1,2576.0,0.634]
[1646739566899,1.94197,2576.1,2575.9,0.00650712]
[1646739568301,2.91298,2576.1,2575.9,0.00650712]
[1646739568756,2.91789971,2576.1,2575.9,0.00650712]
[1646739569553,0.86699358,2576.0,2575.9,0.00650712]
[1646739570553,2.91787588,2576.1,2575.9,0.00650712]
[1646739570958,0.97093,2576.1,2575.9,0.00650712]
[1646739571160,0.97499651,2576.1,2575.9,0.00650712]
[1646739572192,0.97093,2576.1,2575.9,0.00650712]
[1646739572393,0.97499651,2576.1,2575.9,0.00650712]
[1646739573194,0.97093,2576.1,2575.9,0.00650712]
[1646739573597,0.97499651,2576.1,2575.9,0.00650712]
[1646739573797,0.97499651,2576.1,2575.9,0.64050712]
[1646739574198,0.97499651,2576.1,2576.0,0.634]
[1646739574398,0.97093,2576.1,2576.0,0.634]
[1646739574798,0.97574761,2576.1,2576.0,0.634]
[1646739575599,0.97093,2576.1,2576.0,0.634]
[1646739578146,0.97093,2576.1,2575.9,0.00650712]
[1646739579549,0.97566697,2576.1,2575.9,0.00650712]
[1646739580390,0.97093,2576.1,2575.9,0.00650712]
[1646739581393,2.16320834,2576.1,2575.9,0.00650712]
[1646739581593,2.54930834,2576.1,2575.9,0.00650712]
[1646739581997,2.55405306,2576.1,2575.9,0.00650712]
[1646739582598,0.8521,2576.0,2575.9,0.00650712]
[1646739582999,1.8521,2576.0,2575.9,0.00650712]
[1646739583196,1.8521,2576.0,2575.9,0.00499902]
[1646739584948,0.3861,2575.8,2575.4,0.00474604]
[1646739585146,1.3576,2575.6,2575.4,0.00474604]
[1646739585347,0.3861,2575.3,2574.9,0.66483148]
[1646739585548,1.35761,2575.4,2575.0,0.634]
[1646739586149,0.97153,2575.3,2575.0,0.634]
[1646739586451,0.97153,2575.3,2574.9,0.02873262]
[1646739586649,1.94301,2575.3,2575.1,0.00474951]
[1646739587597,1.94301,2575.3,2574.9,0.02873262]
[1646739587795,0.97153,2575.2,2574.9,0.02873262]
[1646739587995,0.97153,2575.2,2575.1,0.00474951]
[1646739588798,0.97153,2575.2,2574.9,0.02873262]
[1646739589001,3.0969693,2575.2,2574.9,0.02873262]
[1646739589202,4.4546293,2575.2,2575.0,0.00474571]
[1646739589403,0.8521,2575.1,2575.0,0.00474571]
[1646739589702,1.8521,2575.1,2575.0,0.00474571]
[1646739590106,1.8521,2575.1,2574.4,0.0153952]
[1646739590107,6.858,2574.6,2574.4,0.0153952]
[1646739590307,6.858,2574.6,2574.0,1.17926446]
[1646739590308,5.8861,2574.4,2574.2,0.0199464]
[1646739590503,0.8521,2574.3,2574.2,0.0199464]
[1646739590957,1.8521,2574.3,2574.2,0.0199464]
[1646739591346,2.73333363,2574.3,2574.2,0.0199464]
[1646739591547,3.8861,2574.2,2574.1,0.4652869]
[1646739591846,5.32415,2574.2,2574.1,0.4652869]
[1646739592045,2.82415,2574.2,2574.1,0.4652869]
[1646739592445,2.43805,2574.2,2574.1,0.4652869]
[1646739592647,1.43805,2574.2,2574.1,0.4652869]
[1646739593246,2.43805,2574.2,2574.1,0.4652869]
[1646739593647,2.43805,2574.2,2574.1,0.4152869]
[1646739593849,2.82415,2574.2,2574.1,0.4152869]
[1646739595797,2.43805,2574.2,2574.1,0.4152869]
[1646739597204,2.82415,2574.2,2574.1,0.4152869]
[1646739597806,52.82415,2574.2,2574.1,0.4152869]
[1646739598449,52.43805,2574.2,2574.1,0.4152869]
[1646739599448,52.82415,2574.2,2574.1,0.4152869]
[1646739600249,52.43805,2574.2,2574.1,0.4152869]
[1646739601150,50.0,2574.2,2574.1,0.4152869]
[1646739602602,50.0,2574.2,2573.6,0.20990337]
[1646739602802,50.0,2574.2,2573.7,1.34481097]
[1646739603204,50.0,2574.2,2573.7,0.95871097]
[1646739604004,51.0605879,2574.2,2573.6,11.8761519]
[1646739604204,51.0605879,2574.2,2573.6,0.0761519]
[1646739605303,1.04650551,2573.8,2573.6,0.07775282]
[1646739605967,0.00162289,2574.0,2573.6,0.07775282]
[1646739606969,50.0,2574.2,2573.6,0.07775282]
[1646739607168,0.0050746,2573.9,2573.8,1.09995732]
[1646739607368,0.0050746,2573.9,2573.8,1.73373683]
[1646739608170,50.0,2574.2,2573.8,1.73373683]
[1646739608373,0.00507453,2574.0,2573.8,1.73373683]
[1646739608574,0.00507453,2574.0,2573.8,1.68373683]
[1646739608776,0.00507453,2574.0,2573.8,2.06983683]
[1646739608975,0.00507453,2574.0,2573.9,4.11392059]
[1646739609175,0.00507453,2574.0,2573.9,12.80002059]
[1646739609374,50.0,2574.2,2573.9,12.80162151]
[1646739609798,0.00507446,2574.0,2573.9,12.80162151]
[1646739610701,0.0050744,2574.1,2573.9,12.80162151]
[1646739611703,50.0,2574.2,2573.9,12.80162151]
[1646739612004,0.0049221,2574.1,2573.9,12.80162151]
[1646739612902,50.0,2574.2,2573.9,12.41552151]
[1646739613108,0.0049221,2574.1,2573.9,12.41552151]
[1646739613950,0.0049221,2574.1,2573.9,16.30162151]
[1646739614150,50.0,2574.2,2573.9,12.80162151]
[1646739614352,0.0049221,2574.1,2573.9,12.80162151]
[1646739615252,50.0,2574.2,2573.9,12.80162151]
[1646739615553,0.00474614,2574.1,2573.9,12.80162151]
[1646739616352,50.0,2574.2,2574.1,18.3080045]
[1646739616555,0.00087501,2574.9,2574.1,18.3080045]
[1646739616556,7.501e-05,2574.9,2574.4,12.41392059]
[1646739616755,7.501e-05,2574.9,2574.6,12.80002059]
[1646739617204,7.501e-05,2574.9,2574.7,1.14812173]
[1646739617395,7.501e-05,2574.9,2574.8,12.80002059]
[1646739620001,7.501e-05,2574.9,2574.8,16.30002059]
[1646739620603,7.501e-05,2574.9,2574.8,13.80002059]
[1646739621052,7.501e-05,2574.9,2574.8,14.82659219]
[1646739621453,7.501e-05,2574.9,2574.8,13.80002059]
[1646739621650,7.501e-05,2574.9,2574.8,17.30002059]
[1646739621852,7.501e-05,2574.9,2574.8,17.60207991]
[1646739622054,7.501e-05,2574.9,2574.8,17.60002059]
[1646739622252,7.501e-05,2574.9,2574.8,18.06602059]
[1646739622654,7.501e-05,2574.9,2574.8,19.05677031]
[1646739622956,7.501e-05,2574.9,2574.8,20.81546615]
[1646739623155,0.3885,2576.2,2575.2,1.00002059]
[1646739623354,0.3885,2576.2,2576.1,12.41392059]
[1646739623755,0.3885,2576.2,2576.1,13.48672317]
[1646739623958,0.3885,2576.2,2575.8,0.61392059]
[1646739624557,1.21091096,2576.6,2575.8,0.61392059]
[1646739625203,0.00161576,2576.1,2576.0,0.61392059]
[1646739625400,0.97264576,2576.1,2576.0,0.61392059]
[1646739626007,0.97103,2576.1,2576.0,0.61392059]
[1646739626412,0.92103,2576.1,2576.0,0.7709]
[1646739626611,2.92827383,2576.1,2576.0,0.68004261]
[1646739627009,2.92827383,2576.1,2574.8,3.5]
[1646739627010,6.47123,2575.9,2574.8,3.5]
[1646739627210,5.5,2575.4,2573.9,0.38537243]
[1646739627410,2.91508,2575.2,2573.8,3.5]
[1646739627614,3.5,2575.1,2573.9,1.58624666]
[1646739627812,0.466,2575.0,2573.9,1.58624666]
[1646739628011,0.91305907,2574.1,2573.8,0.0138992]
[1646739628213,0.97188,2574.0,2573.8,0.0138992]
[1646739628453,0.97188,2574.0,2573.7,0.39410368]
[1646739629954,0.97188,2574.0,2573.7,0.3989589]
[1646739630454,1.94403,2573.9,2573.7,0.3989589]
[1646739630856,1.94403,2573.9,2573.7,0.39410368]
[1646739630857,3.88825,2573.9,2573.7,0.39410368]
[1646739631058,1.94403,2573.9,2573.7,0.39410368]
[1646739631255,1.94403,2573.9,2573.8,1.1]
[1646739631654,1.94403,2573.9,2573.8,1.10640368]
[1646739635431,0.97188,2574.0,2573.8,1.10640368]
[1646739636658,0.97188,2574.0,2573.7,0.39246234]
[1646739636856,0.97188,2574.0,2573.3,0.04038526]
[1646739636857,3.8861,2573.9,2573.3,0.04038526]
[1646739637060,0.01238246,2573.6,2573.3,0.0193137]
[1646739637258,0.01238246,2573.6,2573.4,0.01929352]
[1646739637459,1.01238246,2573.6,2573.4,0.01929352]
[1646739638058,1.17043383,2573.5,2573.4,0.01929352]
[1646739638259,2.14271383,2573.5,2573.3,0.0193137]
[1646739638659,2.60871383,2573.5,2573.3,0.0193137]
[1646739638860,5.5,2573.3,2573.1,0.0203704]
[1646739639061,3.966,2573.2,2573.1,0.0203704]